[Event "*** SCC Grand Prix: Titled Tuesday Blitz"]
[Site "Chess.com"]
[Date "2020.06.23"]
[Round "3"]
[White "MaxVavulin"]
[Black "Andrii_Prydun"]
[Result "1-0"]
[WhiteElo "2568"]
[BlackElo "2384"]
[TimeControl "180+1"]
[EndTime "10:29:37 PDT"]
[Termination "MaxVavulin won on time"]

1. e4 {[%clk 0:03:00.9]} 1... d5 {[%clk 0:02:56.9]} 2. exd5 {[%clk 0:03:00.4]}
2... Qxd5 {[%clk 0:02:57.8]} 3. Nc3 {[%clk 0:03:00.8]} 3... Qd6 {[%clk
0:02:58.2]} 4. d4 {[%clk 0:03:00.3]} 4... c6 {[%clk 0:02:58.7]} 5. g3 {[%clk
0:02:57.1]} 5... Nf6 {[%clk 0:02:58.2]} 6. Bg2 {[%clk 0:02:56.9]} 6... Bg4
{[%clk 0:02:58.1]} 7. Nf3 {[%clk 0:02:57.4]} 7... e6 {[%clk 0:02:57.8]} 8. Bf4
{[%clk 0:02:51]} 8... Qd8 {[%clk 0:02:56.9]} 9. h3 {[%clk 0:02:49.1]} 9... Bxf3
{[%clk 0:02:56.2]} 10. Bxf3 {[%clk 0:02:49.2]} 10... Bd6 {[%clk 0:02:55.8]} 11.
Bc1 {[%clk 0:02:38.2]} 11... Nbd7 {[%clk 0:02:50.2]} 12. O-O {[%clk 0:02:38]}
12... h5 {[%clk 0:02:49.7]} 13. h4 {[%clk 0:02:37.2]} 13... Qc7 {[%clk
0:02:47.2]} 14. Kg2 {[%clk 0:02:32.9]} 14... O-O-O {[%clk 0:02:44.2]} 15. a4
{[%clk 0:02:30.4]} 15... e5 {[%clk 0:02:44.1]} 16. a5 {[%clk 0:02:26.9]} 16...
exd4 {[%clk 0:02:42.2]} 17. Qxd4 {[%clk 0:02:26.2]} 17... Bc5 {[%clk 0:02:19]}
18. Qc4 {[%clk 0:02:16]} 18... a6 {[%clk 0:01:28.9]} 19. Bf4 {[%clk 0:02:00.7]}
19... Bd6 {[%clk 0:01:28.4]} 20. Bxd6 {[%clk 0:02:01.3]} 20... Qxd6 {[%clk
0:01:28.9]} 21. Rfd1 {[%clk 0:02:00.4]} 21... Qe6 {[%clk 0:01:15.4]} 22. Qxe6
{[%clk 0:01:52.1]} 22... fxe6 {[%clk 0:01:15.9]} 23. Na4 {[%clk 0:01:52.4]}
23... Kc7 {[%clk 0:01:09.1]} 24. Re1 {[%clk 0:01:41.9]} 24... e5 {[%clk
0:01:05]} 25. Ra3 {[%clk 0:01:38.1]} 25... e4 {[%clk 0:00:52]} 26. Bxe4 {[%clk
0:01:34]} 26... Rhe8 {[%clk 0:00:51.6]} 27. Rae3 {[%clk 0:01:30.2]} 27... Re5
{[%clk 0:00:51.7]} 28. b4 {[%clk 0:01:13.1]} 28... Ng4 {[%clk 0:00:43.7]} 29.
R3e2 {[%clk 0:01:10.2]} 29... Rf8 {[%clk 0:00:41.4]} 30. f3 {[%clk 0:00:50.4]}
30... Ngf6 {[%clk 0:00:39.3]} 31. Bg6 {[%clk 0:00:34.4]} 31... Rxe2+ {[%clk
0:00:29.1]} 32. Rxe2 {[%clk 0:00:33.8]} 32... Nd5 {[%clk 0:00:26.3]} 33. c3
{[%clk 0:00:24.4]} 33... c5 {[%clk 0:00:10.8]} 34. bxc5 {[%clk 0:00:20]} 34...
Rf4 {[%clk 0:00:10.7]} 35. gxf4 {[%clk 0:00:18.4]} 35... Nxf4+ {[%clk
0:00:11.6]} 36. Kf2 {[%clk 0:00:18.8]} 36... Nxg6 {[%clk 0:00:12.3]} 37. Kg3
{[%clk 0:00:17.7]} 37... Nge5 {[%clk 0:00:12.2]} 38. Kf4 {[%clk 0:00:16]} 38...
Nc6 {[%clk 0:00:10.6]} 39. Kg5 {[%clk 0:00:16]} 39... Nxa5 {[%clk 0:00:09.9]}
40. Kxh5 {[%clk 0:00:15.6]} 40... Nc6 {[%clk 0:00:09.9]} 41. Kg6 {[%clk
0:00:15.6]} 41... Nce5+ {[%clk 0:00:10.1]} 42. Kxg7 {[%clk 0:00:15.8]} 42...
Nxf3 {[%clk 0:00:08.6]} 43. h5 {[%clk 0:00:16.2]} 43... Nh4 {[%clk 0:00:06]} 44.
h6 {[%clk 0:00:16.3]} 44... Nf5+ {[%clk 0:00:06.3]} 45. Kg6 {[%clk 0:00:17]}
45... Nh4+ {[%clk 0:00:04.3]} 46. Kg5 {[%clk 0:00:17.2]} 46... Nf3+ {[%clk
0:00:04.4]} 47. Kf4 {[%clk 0:00:16.6]} 47... Nh4 {[%clk 0:00:04.5]} 48. h7
{[%clk 0:00:16.6]} 48... Ng6+ {[%clk 0:00:04.8]} 49. Kf5 {[%clk 0:00:16.3]}
49... Nh4+ {[%clk 0:00:02.5]} 50. Kg5 {[%clk 0:00:15.4]} 50... Nf3+ {[%clk
0:00:02.6]} 51. Kf4 {[%clk 0:00:13.9]} 51... Nh4 {[%clk 0:00:02.8]} 52. Re6
{[%clk 0:00:14]} 52... Nf8 {[%clk 0:00:01.8]} 53. Rh6 {[%clk 0:00:12.7]} 53...
Nhg6+ {[%clk 0:00:01.7]} 54. Kg5 {[%clk 0:00:12.8]} 54... Nh8 {[%clk 0:00:02.1]}
55. Kf6 {[%clk 0:00:13.1]} 1-0

[Event "*** SCC Grand Prix: Titled Tuesday Blitz"]
[Site "Chess.com"]
[Date "2020.06.23"]
[Round "3"]
[White "djano"]
[Black "Igrok3069"]
[Result "1-0"]
[WhiteElo "2459"]
[BlackElo "2723"]
[TimeControl "180+1"]
[EndTime "10:29:38 PDT"]
[Termination "djano won on time"]

1. d4 {[%clk 0:03:00.9]} 1... d5 {[%clk 0:02:59.6]} 2. Bf4 {[%clk 0:03:00.9]}
2... c5 {[%clk 0:02:56.6]} 3. e3 {[%clk 0:02:58.6]} 3... cxd4 {[%clk 0:02:56.2]}
4. exd4 {[%clk 0:02:58.7]} 4... Nc6 {[%clk 0:02:55.8]} 5. c3 {[%clk 0:02:53.2]}
5... Bf5 {[%clk 0:02:55]} 6. Nf3 {[%clk 0:02:48.9]} 6... e6 {[%clk 0:02:48.1]}
7. Nbd2 {[%clk 0:02:38.8]} 7... Bd6 {[%clk 0:02:18]} 8. Bg3 {[%clk 0:02:31.8]}
8... Nf6 {[%clk 0:02:14.9]} 9. Qb3 {[%clk 0:02:26.4]} 9... Rb8 {[%clk 0:02:12]}
10. Ne5 {[%clk 0:02:18.1]} 10... O-O {[%clk 0:02:06]} 11. Be2 {[%clk 0:02:14.6]}
11... Bxe5 {[%clk 0:02:02.5]} 12. dxe5 {[%clk 0:02:13]} 12... Nd7 {[%clk
0:02:01.3]} 13. f4 {[%clk 0:02:00.4]} 13... Nc5 {[%clk 0:02:01]} 14. Qa3 {[%clk
0:01:54.4]} 14... Nd3+ {[%clk 0:01:53.5]} 15. Bxd3 {[%clk 0:01:54]} 15... Bxd3
{[%clk 0:01:54.1]} 16. O-O-O {[%clk 0:01:26.3]} 16... Qb6 {[%clk 0:01:41.8]} 17.
Qb3 {[%clk 0:01:09.8]} 17... Qc5 {[%clk 0:01:34.9]} 18. Nf3 {[%clk 0:01:02.9]}
18... Bc4 {[%clk 0:01:23.9]} 19. Qc2 {[%clk 0:00:54.5]} 19... Rfc8 {[%clk
0:01:14.2]} 20. b3 {[%clk 0:00:37.1]} 20... Ba6 {[%clk 0:00:54.1]} 21. Bf2
{[%clk 0:00:37.2]} 21... Qa5 {[%clk 0:00:46.6]} 22. Kb1 {[%clk 0:00:33.8]} 22...
Nb4 {[%clk 0:00:43.5]} 23. cxb4 {[%clk 0:00:34]} 23... Rxc2 {[%clk 0:00:42.7]}
24. bxa5 {[%clk 0:00:34.4]} 24... Rxf2 {[%clk 0:00:43.3]} 25. Rd2 {[%clk
0:00:34]} 25... Rxd2 {[%clk 0:00:39.4]} 26. Nxd2 {[%clk 0:00:34.9]} 26... h6
{[%clk 0:00:34.6]} 27. Rc1 {[%clk 0:00:34.6]} 27... g5 {[%clk 0:00:34.7]} 28. g3
{[%clk 0:00:33.8]} 28... Kg7 {[%clk 0:00:34.6]} 29. Kb2 {[%clk 0:00:29.2]} 29...
gxf4 {[%clk 0:00:28.5]} 30. gxf4 {[%clk 0:00:30.1]} 30... Kg6 {[%clk 0:00:29.1]}
31. Rc7 {[%clk 0:00:29.9]} 31... Rg8 {[%clk 0:00:25.4]} 32. a4 {[%clk
0:00:29.3]} 32... d4 {[%clk 0:00:18]} 33. b4 {[%clk 0:00:28.4]} 33... Bd3 {[%clk
0:00:16]} 34. Rxb7 {[%clk 0:00:26.7]} 34... Kh5 {[%clk 0:00:15.9]} 35. Rxa7
{[%clk 0:00:25]} 35... Rg2 {[%clk 0:00:15.4]} 36. Kc1 {[%clk 0:00:24.8]} 36...
Rg1+ {[%clk 0:00:15.4]} 37. Kb2 {[%clk 0:00:25]} 37... Rg2 {[%clk 0:00:15.2]}
38. Kc1 {[%clk 0:00:23.6]} 38... Rg1+ {[%clk 0:00:13.6]} 39. Kb2 {[%clk
0:00:23.6]} 39... Rd1 {[%clk 0:00:13.2]} 40. Nb3 {[%clk 0:00:20.4]} 40... Bc4
{[%clk 0:00:12.5]} 41. Rc7 {[%clk 0:00:16.8]} 41... Bd5 {[%clk 0:00:11.8]} 42.
a6 {[%clk 0:00:16.8]} 42... Rd3 {[%clk 0:00:10]} 43. Nc5 {[%clk 0:00:15.2]}
43... Rd2+ {[%clk 0:00:10.2]} 44. Kc1 {[%clk 0:00:15.3]} 44... Ra2 {[%clk
0:00:08]} 45. a7 {[%clk 0:00:14.2]} 45... d3 {[%clk 0:00:07.2]} 46. Nxd3 {[%clk
0:00:12.2]} 46... Rxa4 {[%clk 0:00:07.4]} 47. b5 {[%clk 0:00:10.2]} 47... Ra3
{[%clk 0:00:05.6]} 48. Nb4 {[%clk 0:00:09.1]} 48... Be4 {[%clk 0:00:04.2]} 49.
b6 {[%clk 0:00:08.3]} 49... Rb3 {[%clk 0:00:04]} 50. Nc6 {[%clk 0:00:07.9]}
50... Ra3 {[%clk 0:00:02.6]} 51. b7 {[%clk 0:00:07.2]} 1-0

[Event "*** SCC Grand Prix: Titled Tuesday Blitz"]
[Site "Chess.com"]
[Date "2020.06.23"]
[Round "3"]
[White "Ashedu66"]
[Black "Canairez"]
[Result "0-1"]
[WhiteElo "2147"]
[BlackElo "2346"]
[TimeControl "180+1"]
[EndTime "10:29:40 PDT"]
[Termination "Canairez won by resignation"]

1. d4 {[%clk 0:03:00.9]} 1... c6 {[%clk 0:03:00.9]} 2. e4 {[%clk 0:03:00.2]}
2... d5 {[%clk 0:03:01.8]} 3. exd5 {[%clk 0:03:00.3]} 3... cxd5 {[%clk
0:03:02.1]} 4. Bd3 {[%clk 0:03:00.4]} 4... Nc6 {[%clk 0:03:03]} 5. c3 {[%clk
0:03:00.5]} 5... Nf6 {[%clk 0:03:03.5]} 6. Bg5 {[%clk 0:02:59.7]} 6... Qb6
{[%clk 0:03:02.2]} 7. Qb3 {[%clk 0:02:45.7]} 7... Bg4 {[%clk 0:02:52.2]} 8. Nd2
{[%clk 0:02:41.1]} 8... e6 {[%clk 0:02:51.5]} 9. Ngf3 {[%clk 0:02:34.4]} 9...
Bd6 {[%clk 0:02:42.8]} 10. O-O {[%clk 0:02:32.4]} 10... Bh5 {[%clk 0:02:40.6]}
11. Rfe1 {[%clk 0:02:30]} 11... O-O {[%clk 0:02:40.2]} 12. h3 {[%clk 0:02:10.1]}
12... Bg6 {[%clk 0:02:38.3]} 13. Bf1 {[%clk 0:02:07.4]} 13... Na5 {[%clk
0:02:37]} 14. Qxb6 {[%clk 0:02:04.9]} 14... axb6 {[%clk 0:02:37.9]} 15. Ne5
{[%clk 0:01:57.9]} 15... Rfc8 {[%clk 0:02:36.1]} 16. Bxf6 {[%clk 0:01:52.7]}
16... gxf6 {[%clk 0:02:35.3]} 17. Nd7 {[%clk 0:01:48.6]} 17... Bc7 {[%clk
0:02:23.7]} 18. Nxf6+ {[%clk 0:01:45.7]} 18... Kg7 {[%clk 0:02:24.2]} 19. Ng4
{[%clk 0:01:43.8]} 19... Bd6 {[%clk 0:02:11.5]} 20. Ne5 {[%clk 0:01:41.5]} 20...
Nc6 {[%clk 0:02:07.5]} 21. Ndf3 {[%clk 0:01:16.6]} 21... Be4 {[%clk 0:02:02.8]}
22. Nd7 {[%clk 0:00:44.4]} 22... Bc7 {[%clk 0:02:01.1]} 23. Nd2 {[%clk 0:00:41]}
23... Bg6 {[%clk 0:01:56.6]} 24. Ne5 {[%clk 0:00:36.5]} 24... Nxe5 {[%clk
0:01:48]} 25. dxe5 {[%clk 0:00:36.1]} 25... Ra4 {[%clk 0:01:42.1]} 26. Nf3
{[%clk 0:00:29.8]} 26... Be4 {[%clk 0:01:39.6]} 27. Nd4 {[%clk 0:00:29.1]} 27...
Bxe5 {[%clk 0:01:38.8]} 28. Nb5 {[%clk 0:00:20.6]} 28... Bb8 {[%clk 0:01:32.7]}
29. f3 {[%clk 0:00:20]} 29... Bg6 {[%clk 0:01:31.7]} 30. a3 {[%clk 0:00:19.9]}
30... h5 {[%clk 0:01:19.9]} 31. Rad1 {[%clk 0:00:19.6]} 31... h4 {[%clk
0:01:18.9]} 32. Bd3 {[%clk 0:00:17.9]} 32... Bh5 {[%clk 0:01:12.8]} 33. Bc2
{[%clk 0:00:16.1]} 33... Rf4 {[%clk 0:01:11.8]} 34. Nd4 {[%clk 0:00:15.9]} 34...
Rf6 {[%clk 0:01:08.1]} 35. Kf2 {[%clk 0:00:14.9]} 35... Bg3+ {[%clk 0:01:06.9]}
36. Kf1 {[%clk 0:00:14.9]} 36... Bxe1 {[%clk 0:01:07.8]} 37. Rxe1 {[%clk
0:00:15.2]} 37... Bg6 {[%clk 0:01:07.5]} 38. Ba4 {[%clk 0:00:14.3]} 38... Bd3+
{[%clk 0:01:05.6]} 39. Kf2 {[%clk 0:00:13.9]} 39... Rg6 {[%clk 0:00:59.4]} 40.
Re3 {[%clk 0:00:12.8]} 40... Bc4 {[%clk 0:00:54.4]} 41. Bc2 {[%clk 0:00:12.5]}
41... Rg3 {[%clk 0:00:49.9]} 42. f4 {[%clk 0:00:11.9]} 42... Rxe3 {[%clk
0:00:49.4]} 43. Kxe3 {[%clk 0:00:12.1]} 43... Kf6 {[%clk 0:00:49.5]} 44. Kf3
{[%clk 0:00:11.5]} 44... Rg8 {[%clk 0:00:47.8]} 45. Kf2 {[%clk 0:00:11.3]} 45...
Ke7 {[%clk 0:00:36.4]} 46. Nf3 {[%clk 0:00:11]} 46... Rh8 {[%clk 0:00:35.9]} 47.
f5 {[%clk 0:00:10.6]} 47... Kd6 {[%clk 0:00:34.2]} 48. fxe6 {[%clk 0:00:10.1]}
48... fxe6 {[%clk 0:00:35.1]} 49. Ke3 {[%clk 0:00:10.1]} 49... e5 {[%clk
0:00:34.8]} 50. b3 {[%clk 0:00:09.5]} 50... Bf1 {[%clk 0:00:33.7]} 51. Kf2
{[%clk 0:00:08.4]} 51... Bb5 {[%clk 0:00:34.6]} 52. Ng5 {[%clk 0:00:08.4]} 52...
Rf8+ {[%clk 0:00:31.4]} 53. Ke3 {[%clk 0:00:08.7]} 53... Bf1 {[%clk 0:00:30.7]}
54. Nf3 {[%clk 0:00:07.6]} 54... Bxg2 {[%clk 0:00:29.4]} 55. Nxh4 {[%clk
0:00:07.7]} 55... Bxh3 {[%clk 0:00:29.1]} 56. Ng6 {[%clk 0:00:07.3]} 56... Rf6
{[%clk 0:00:28.2]} 57. Nh8 {[%clk 0:00:06.6]} 57... Bf5 {[%clk 0:00:26.9]} 58.
Bxf5 {[%clk 0:00:05.2]} 58... Rxf5 {[%clk 0:00:27.8]} 59. Ng6 {[%clk 0:00:05.4]}
59... Rg5 {[%clk 0:00:28]} 60. Nh4 {[%clk 0:00:04.8]} 60... Rg3+ {[%clk
0:00:28.1]} 61. Kd2 {[%clk 0:00:04.9]} 61... Ke6 {[%clk 0:00:27.8]} 62. b4
{[%clk 0:00:03.9]} 62... Kf6 {[%clk 0:00:27.4]} 63. a4 {[%clk 0:00:02.1]} 63...
Kg5 {[%clk 0:00:27.2]} 0-1

[Event "*** SCC Grand Prix: Titled Tuesday Blitz"]
[Site "Chess.com"]
[Date "2020.06.23"]
[Round "3"]
[White "deep306"]
[Black "Phriex"]
[Result "1-0"]
[WhiteElo "2649"]
[BlackElo "2384"]
[TimeControl "180+1"]
[EndTime "10:29:41 PDT"]
[Termination "deep306 won by resignation"]

1. d4 {[%clk 0:03:00.9]} 1... d5 {[%clk 0:02:59.7]} 2. Bf4 {[%clk 0:03:01.4]}
2... Nf6 {[%clk 0:02:59.7]} 3. e3 {[%clk 0:03:02]} 3... c5 {[%clk 0:03:00.2]} 4.
c3 {[%clk 0:03:02]} 4... Nc6 {[%clk 0:03:00.7]} 5. Nd2 {[%clk 0:03:02]} 5...
cxd4 {[%clk 0:03:01.3]} 6. exd4 {[%clk 0:03:01.8]} 6... Bf5 {[%clk 0:03:01.8]}
7. Qb3 {[%clk 0:03:00]} 7... Qc8 {[%clk 0:03:00.2]} 8. Ngf3 {[%clk 0:02:58.9]}
8... e6 {[%clk 0:03:00.3]} 9. h3 {[%clk 0:02:58.7]} 9... Be7 {[%clk 0:02:59.5]}
10. Be2 {[%clk 0:02:53.2]} 10... O-O {[%clk 0:02:59]} 11. Ne5 {[%clk 0:02:50.7]}
11... Rd8 {[%clk 0:02:50.5]} 12. g4 {[%clk 0:02:50.1]} 12... Bg6 {[%clk
0:02:49.9]} 13. h4 {[%clk 0:02:49.8]} 13... Nxe5 {[%clk 0:02:34.1]} 14. dxe5
{[%clk 0:02:49.1]} 14... Nd7 {[%clk 0:02:34]} 15. h5 {[%clk 0:02:39.5]} 15...
Nc5 {[%clk 0:02:32.5]} 16. Qd1 {[%clk 0:02:12]} 16... Nd3+ {[%clk 0:02:24.8]}
17. Bxd3 {[%clk 0:02:11.9]} 17... Bxd3 {[%clk 0:02:25.7]} 18. Qf3 {[%clk
0:02:12.3]} 18... Ba6 {[%clk 0:02:05.4]} 19. g5 {[%clk 0:02:11]} 19... d4 {[%clk
0:02:03.2]} 20. g6 {[%clk 0:02:10.9]} 20... dxc3 {[%clk 0:01:58.8]} 21. bxc3
{[%clk 0:02:05.8]} 21... Qc6 {[%clk 0:01:55.9]} 22. gxf7+ {[%clk 0:02:05.4]}
22... Kxf7 {[%clk 0:01:50.8]} 23. Ne4 {[%clk 0:02:02.8]} 23... Rd3 {[%clk
0:01:26.7]} 24. Be3+ {[%clk 0:01:56.4]} 24... Kg8 {[%clk 0:01:19.2]} 25. h6
{[%clk 0:01:46.4]} 25... Rf8 {[%clk 0:00:50.2]} 26. Qg4 {[%clk 0:01:45.6]} 26...
g6 {[%clk 0:00:48.4]} 27. O-O {[%clk 0:01:42]} 27... b6 {[%clk 0:00:34.6]} 28.
Rad1 {[%clk 0:01:31.3]} 28... Rfd8 {[%clk 0:00:27.8]} 29. Bd4 {[%clk 0:01:21.5]}
29... Rxd1 {[%clk 0:00:20.6]} 30. Rxd1 {[%clk 0:01:21]} 30... Bb7 {[%clk
0:00:19.1]} 31. Re1 {[%clk 0:01:20.6]} 31... Rf8 {[%clk 0:00:16.6]} 32. f3
{[%clk 0:01:12.5]} 32... Rf5 {[%clk 0:00:16.3]} 33. Kg2 {[%clk 0:01:07.1]} 33...
Qd5 {[%clk 0:00:16]} 34. Re2 {[%clk 0:01:02.9]} 34... Ba6 {[%clk 0:00:15.9]} 35.
Rd2 {[%clk 0:01:02]} 35... Qc4 {[%clk 0:00:12.7]} 36. Rf2 {[%clk 0:00:37.7]}
36... Bb7 {[%clk 0:00:12.9]} 37. Rd2 {[%clk 0:00:27.6]} 37... Ba6 {[%clk
0:00:08.4]} 38. Rf2 {[%clk 0:00:27]} 38... Bb7 {[%clk 0:00:08.7]} 39. Rd2 {[%clk
0:00:26.2]} 39... Bxe4 {[%clk 0:00:07.9]} 40. Qxe4 {[%clk 0:00:24]} 40... Rg5+
{[%clk 0:00:08.2]} 41. Kf2 {[%clk 0:00:22.3]} 41... Rh5 {[%clk 0:00:05.1]} 42.
Qa8+ {[%clk 0:00:17]} 42... Kf7 {[%clk 0:00:04.8]} 43. Qxa7 {[%clk 0:00:17]}
43... Rh2+ {[%clk 0:00:04.1]} 44. Ke3 {[%clk 0:00:17.1]} 44... Rxd2 {[%clk
0:00:02.4]} 45. Kxd2 {[%clk 0:00:16.6]} 45... Qd5 {[%clk 0:00:02.8]} 46. Qxb6
{[%clk 0:00:14.4]} 46... Qxf3 {[%clk 0:00:02.5]} 47. Qa7 {[%clk 0:00:11.9]}
47... Qf4+ {[%clk 0:00:02.7]} 48. Kc2 {[%clk 0:00:12.2]} 48... Qxh6 {[%clk
0:00:02.9]} 49. Bc5 {[%clk 0:00:12.5]} 49... Qh2+ {[%clk 0:00:03.3]} 50. Kb3
{[%clk 0:00:12.4]} 50... Qh4 {[%clk 0:00:04.2]} 51. a4 {[%clk 0:00:12.2]} 51...
h5 {[%clk 0:00:03]} 52. a5 {[%clk 0:00:12.5]} 52... Kf8 {[%clk 0:00:02.7]} 53.
Qxe7+ {[%clk 0:00:12.8]} 53... Qxe7 {[%clk 0:00:03.6]} 54. Bxe7+ {[%clk
0:00:13.4]} 54... Kxe7 {[%clk 0:00:04.5]} 55. a6 {[%clk 0:00:13.5]} 55... h4
{[%clk 0:00:05.4]} 56. a7 {[%clk 0:00:14.2]} 1-0

[Event "*** SCC Grand Prix: Titled Tuesday Blitz"]
[Site "Chess.com"]
[Date "2020.06.23"]
[Round "3"]
[White "deribas12345"]
[Black "CalinGheorghiu"]
[Result "1-0"]
[WhiteElo "2562"]
[BlackElo "2377"]
[TimeControl "180+1"]
[EndTime "10:29:41 PDT"]
[Termination "deribas12345 won by resignation"]

1. d4 {[%clk 0:03:00.9]} 1... Nf6 {[%clk 0:02:59.2]} 2. c4 {[%clk 0:03:00.7]}
2... e6 {[%clk 0:02:59.4]} 3. Nc3 {[%clk 0:02:59.6]} 3... Bb4 {[%clk 0:02:57.8]}
4. a3 {[%clk 0:02:59.8]} 4... Bxc3+ {[%clk 0:02:57.1]} 5. bxc3 {[%clk
0:03:00.7]} 5... O-O {[%clk 0:02:53.1]} 6. f3 {[%clk 0:03:01.6]} 6... c5 {[%clk
0:02:46.7]} 7. e4 {[%clk 0:03:00.9]} 7... Nc6 {[%clk 0:02:46.2]} 8. Be3 {[%clk
0:02:56.1]} 8... cxd4 {[%clk 0:02:13]} 9. cxd4 {[%clk 0:02:55.8]} 9... d5 {[%clk
0:02:13]} 10. e5 {[%clk 0:02:52.4]} 10... Nd7 {[%clk 0:02:10.3]} 11. cxd5 {[%clk
0:02:42.2]} 11... exd5 {[%clk 0:02:08.9]} 12. Bd3 {[%clk 0:02:42.7]} 12... f6
{[%clk 0:02:02.5]} 13. exf6 {[%clk 0:02:40]} 13... Re8 {[%clk 0:01:56.9]} 14.
Qd2 {[%clk 0:02:28.3]} 14... Nxf6 {[%clk 0:01:33.5]} 15. Ne2 {[%clk 0:02:26.3]}
15... Qe7 {[%clk 0:01:32.2]} 16. Bf2 {[%clk 0:02:21.7]} 16... b6 {[%clk
0:01:18.2]} 17. O-O {[%clk 0:02:19.5]} 17... Na5 {[%clk 0:01:17.4]} 18. Rae1
{[%clk 0:02:09.1]} 18... Nc4 {[%clk 0:01:05.6]} 19. Bxc4 {[%clk 0:02:03.7]}
19... dxc4 {[%clk 0:01:06.5]} 20. Nc3 {[%clk 0:01:58.8]} 20... Qf7 {[%clk
0:01:05.3]} 21. Rxe8+ {[%clk 0:01:57.5]} 21... Nxe8 {[%clk 0:01:02.4]} 22. Bg3
{[%clk 0:01:48.9]} 22... Bf5 {[%clk 0:00:59.6]} 23. Be5 {[%clk 0:01:46.7]} 23...
Rd8 {[%clk 0:00:58.5]} 24. Re1 {[%clk 0:01:45.7]} 24... Nd6 {[%clk 0:00:56.9]}
25. Qg5 {[%clk 0:01:43.6]} 25... Rd7 {[%clk 0:00:51]} 26. Bxd6 {[%clk
0:01:30.2]} 26... Rxd6 {[%clk 0:00:50.7]} 27. Re7 {[%clk 0:01:30.2]} 27... Qf6
{[%clk 0:00:40.8]} 28. Qxf6 {[%clk 0:01:18.9]} 28... gxf6 {[%clk 0:00:41]} 29.
d5 {[%clk 0:01:15.2]} 29... a5 {[%clk 0:00:38.6]} 30. Rb7 {[%clk 0:01:07.7]}
30... Bd7 {[%clk 0:00:36.4]} 31. a4 {[%clk 0:01:02.1]} 31... Be8 {[%clk
0:00:32.8]} 32. Ne4 {[%clk 0:00:57.4]} 32... Rd8 {[%clk 0:00:28.7]} 33. Nxf6+
{[%clk 0:00:56.3]} 33... Kf8 {[%clk 0:00:29.1]} 34. Nxh7+ {[%clk 0:00:56.5]}
34... Kg8 {[%clk 0:00:29.4]} 35. Nf6+ {[%clk 0:00:57.1]} 35... Kf8 {[%clk
0:00:29.9]} 36. Nxe8 {[%clk 0:00:49.5]} 36... Kxe8 {[%clk 0:00:30.8]} 37. Rxb6
{[%clk 0:00:49.9]} 37... Rxd5 {[%clk 0:00:25.1]} 38. Rc6 {[%clk 0:00:50]} 38...
Rd4 {[%clk 0:00:25.4]} 39. Kf2 {[%clk 0:00:49.7]} 39... Kd7 {[%clk 0:00:25.7]}
40. Rc5 {[%clk 0:00:50]} 40... Kd6 {[%clk 0:00:25.8]} 41. Rxa5 {[%clk
0:00:50.1]} 41... Rd2+ {[%clk 0:00:26.4]} 42. Ke3 {[%clk 0:00:45.3]} 42... Rxg2
{[%clk 0:00:26.7]} 43. Rh5 {[%clk 0:00:43.3]} 43... c3 {[%clk 0:00:25.6]} 44.
Rh8 {[%clk 0:00:36.2]} 44... Kc5 {[%clk 0:00:15.7]} 45. Kd3 {[%clk 0:00:26.4]}
45... Kb4 {[%clk 0:00:15.4]} 46. Rb8+ {[%clk 0:00:25.1]} 46... Kxa4 {[%clk
0:00:14.4]} 47. Kxc3 {[%clk 0:00:23.5]} 47... Rxh2 {[%clk 0:00:14.7]} 48. Kd4
{[%clk 0:00:24]} 48... Re2 {[%clk 0:00:11.6]} 49. f4 {[%clk 0:00:23.5]} 49...
Ka5 {[%clk 0:00:11.8]} 50. f5 {[%clk 0:00:23.8]} 50... Ka6 {[%clk 0:00:12]} 51.
f6 {[%clk 0:00:21.5]} 51... Rf2 {[%clk 0:00:12.2]} 52. Ke5 {[%clk 0:00:21.8]}
52... Ka7 {[%clk 0:00:12]} 53. Rb3 {[%clk 0:00:20.4]} 53... Re2+ {[%clk
0:00:11.6]} 54. Kf5 {[%clk 0:00:20.7]} 54... Rf2+ {[%clk 0:00:11.7]} 55. Ke6
{[%clk 0:00:21.1]} 55... Re2+ {[%clk 0:00:11.4]} 56. Kf7 {[%clk 0:00:21.4]}
56... Rf2 {[%clk 0:00:10.8]} 57. Kg7 {[%clk 0:00:21.4]} 57... Rg2+ {[%clk
0:00:10.6]} 58. Kf8 {[%clk 0:00:21.8]} 58... Rf2 {[%clk 0:00:11]} 59. f7 {[%clk
0:00:22.4]} 59... Rf1 {[%clk 0:00:11.2]} 60. Rg3 {[%clk 0:00:22.4]} 60... Kb6
{[%clk 0:00:10.3]} 61. Kg8 {[%clk 0:00:22.6]} 1-0